Cogmind - Beta 15 @@@ ROGUE MODE // 2025.09.12 @ 15:13:31 Player: shapeshifter Result: Destroyed by S-27 Virus with Autogun Performance ------------- Evolutions (5) 2500 Regions Visited (6) 1200 Robots Destroyed (70) 350 Value Destroyed (2226) 2226 Prototype IDs (18) 360 Alien Tech Used (0) 0 Bonus (877) 877 TOTAL SCORE: 7513 Bonus ------- Follower Combat Kills 77 Registered with UFD 300 Met Optimus in HQ 500 Cogmind --------- Core Integrity 0/1000 Matter 235/300 Energy 99/100 System Corruption 9% Temperature Cool (0) Movement Core (50) Location -5/Factory Parts ------- > --- POWER (2) -------- (None) > --- PROPULSION (6) --- (None) > --- UTILITY (7) ------ Improved Signal Interpreter Advanced Melee Analysis Suite Advanced Melee Analysis Suite Improved Target Analyzer Jamming Amplifier > --- WEAPON (2) ------- (None) > --- INVENTORY (5) ---- Large Storage Unit Transmission Jammer Rainbow Chip Improved Plasma Cutter Botcube Peak State ------------ > --- POWER ------------ Micro Fission Core Light Antimatter Reactor > --- PROPULSION ------- Combat Airjet Combat Airjet Linear Gravjet Field Propulsion Drive > --- UTILITY ---------- Medium Storage Unit Improved Sensor Array Improved Signal Interpreter Advanced Melee Analysis Suite Advanced Melee Analysis Suite Jamming Amplifier Phase Shifter > --- WEAPON ----------- Grenade Launcher Axe > --- INVENTORY -------- Neutrino Core Advanced ECM Suite Advanced Shield Generator Rainbow Chip Improved Heavy Machine Gun Improved Plasma Cutter Vortex Trap Vortex Trap Vortex Trap Botcube [Rating: 71] Favorites ----------- Power Makeshift Power Source Engine Makeshift Power Source Power Core Micro Nuclear Core Reactor Light Antimatter Reactor Propulsion Light Treads Treads Light Treads Leg Flexi-carbon Leg Wheel Wheel Hover Unit Combat Airjet Flight Unit Field Propulsion Drive Utility High-capacity Storage Unit Device Seismic Detector Storage High-capacity Storage Unit Processor Advanced Targeting Computer Protection Core Shielding Weapon Improved Light Cannon Energy Gun Makeshift Laser Ballistic Gun Barrage Gun Ballistic Cannon Improved Light Cannon Launcher EMP Blaster Special Weapon Improved Plasma Cutter Impact Weapon Power Maul Slashing Weapon Axe Build | -11 -10 -10 -10 -8 -6 -5 ------- Run | Yrd Mat Min Sub Scr Fac Fac Slots Evolved 10 | . . . . . 8 2 Power 1 | . . . . . . 1 Propulsion 4 | . . . . . 4 . Utility 5 | . . . . . 4 1 Weapon . | . . . . . . . Parts Attached 88 | 8 3 2 9 9 27 30 Power 14 | 2 . . 1 . 5 6 Engine 9 | 2 . . 1 . 3 3 Core 4 | . . . . . 1 3 Reactor 1 | . . . . . 1 . Propulsion 23 | 2 . . 3 4 5 9 Treads 5 | 2 . . 1 2 . . Leg 1 | . . . . . 1 . Wheel 4 | . . . 2 1 1 . Hover 11 | . . . . 1 3 7 Flight 2 | . . . . . . 2 Utility 30 | 2 1 . 1 3 11 12 Device 11 | 1 . . . 1 4 5 Storage 6 | 1 1 . 1 1 1 1 Processor 11 | . . . . 1 4 6 Hackware . | . . . . . . . Protection 2 | . . . . . 2 . Artifact . | . . . . . . . Weapon 21 | 2 2 2 4 2 6 3 Energy Gun 5 | 1 . . . 2 2 . Energy Cannon . | . . . . . . . Ballistic Gun 3 | 1 . . 1 . 1 . Ballistic Cannon 4 | . 2 1 1 . . . Launcher 5 | . . 1 2 . 2 . Special Weapon 1 | . . . . . . 1 Impact Weapon 1 | . . . . . 1 . Slashing Weapon 2 | . . . . . . 2 Piercing Weapon . | . . . . . . . Special Melee Weapon . | . . . . . . . Unidentified Prototypes 1 | . . . . . 1 . Corrupted Parts 2 | . . . . . 1 1 System Corruption 13 | . . . . . 12 1 Parts Lost 52 | . . 1 7 . 15 29 Power 11 | . . . 1 . 4 6 Propulsion 20 | . . . 3 . 5 12 Utility 12 | . . . 1 . 3 8 Weapon 9 | . . 1 2 . 3 3 Highest Loss Streak 8 | . . 1 5 . 4 8 To Critical Strikes . | . . . . . . . Average Backups 13 | 2 11 16 15 12 10 7 Power . | 1 1 1 . . . . Propulsion . | . 1 1 . . . . Utility 6 | . 4 9 7 8 5 4 Weapon 4 | . 5 5 6 2 4 1 Tool/Special . | . . . . . . . Unused Backups 37 | . 1 . 10 16 5 5 Power 1 | . . . . 1 . . Propulsion 2 | . . . 1 . 1 . Utility 21 | . . . 6 9 1 5 Weapon 13 | . 1 . 3 6 3 . Tool/Special . | . . . . . . . Average Slot Usage (%) 87 | . 99 100 90 90 61 64 Engine 11 | . 14 14 13 14 1 4 Treads 17 | . 28 28 19 15 6 . Wheel 4 | . . . 7 7 1 . Hover 1 | . . . . . 2 15 Device 6 | . 14 14 5 1 5 7 Storage 11 | . 14 14 14 11 6 4 Processor 5 | . . . . 10 15 19 Energy Gun 2 | . . . . 5 11 . Ballistic Gun 1 | . . . 4 . . . Ballistic Cannon 11 | . 27 28 10 11 . . Launcher 7 | . . . 13 11 . . Peak Build Rating 71 | 7 12 12 17 31 44 71 Average Rating 20 | 5 10 11 15 21 34 49 On Entrance 16 | . 7 12 11 17 27 38 Naked Turns . | . . . . . . . Heaviest Build 212 | 14 54 54 212 212 54 43 Greatest Support 60 | 40 40 40 40 60 60 49 Greatest Overweight (x) 21 | . 1 1 21 10 3 4 Average Overweight (x) 3 | . . 1 8 2 . . Largest Inventory Capacity 35 | 8 20 20 35 35 20 15 Average Capacity 21 | 7 16 20 28 18 18 11 Most Carried 20 | 5 17 17 20 20 20 15 Average Carried 14 | 2 11 16 16 14 14 11 Final Capacity 35 | 8 20 20 35 15 10 5 Final Carried 17 | 3 17 16 14 15 10 5 Class Distribution -------------------- 70% | Mutant 24% | Hauler-Mutant Dominant Class ---------------- Mutant | -10/Materials Mutant | -10/Mines Hauler-Mutant | -10/Subcaves Mutant | -8/Scraptown Mutant | -6/Factory Mutant | -5/Factory Resources | -11 -10 -10 -10 -8 -6 -5 ----------- Run | Yrd Mat Min Sub Scr Fac Fac Matter Collected 2080 | 283 176 303 341 194 495 288 Remotely . | . . . . . . . Salvage Created 2680 | 79 298 68 514 . 1180 541 Parts 126 | 3 13 4 31 . 42 33 Haulers Intercepted . | . . . . . . . Recyclers Shooed 1 | . . . . . 1 . Parts Field Recycled . | . . . . . . . Retrieved Matter . | . . . . . . . Parts Self-Destructed 5 | . . . 5 . . . Prevented 5 | . . . 5 . . . Kills | -11 -10 -10 -10 -8 -6 -5 ------- Run | Yrd Mat Min Sub Scr Fac Fac Combat Hostiles Destroyed 50 | . 8 3 14 . 19 6 Melee 4 | . . . . . . 4 Guns 17 | . . . 3 . 14 . Cannons 14 | . 8 3 3 . . . AOE 13 | . . . 8 . 3 2 Classes Destroyed 12 | 2 3 . 2 . 5 . Worker 4 | . . . . . 4 . Builder 7 | . . . . . 2 5 Tunneler 1 | 1 . . . . . . Recycler 4 | 1 1 . . . 1 1 Turret 2 | . . . 2 . . . Watcher 2 | . 2 . . . . . Swarmer 12 | . 3 1 4 . 4 . Grunt 25 | . 5 2 4 . 12 2 Sentry 3 | . . . . . 1 2 Hunter 1 | . . . . . 1 . Programmer 3 | . . . . . 1 2 Subdweller 6 | . . . 6 . . . Best Kill Streak 6 | 1 3 1 5 . 6 6 Combat Bots Only 4 | . 3 1 4 . 4 2 Max Kills in Single Turn 2 | 1 1 1 1 . 2 2 Gunslinging . | . . . . . . . Exploded 2 | . . . 1 . 2 2 Melee 1 | . . . . . . 1 Uniques/NPCs Destroyed . | . . . . . . . Combat | -11 -10 -10 -10 -8 -6 -5 -------- Run | Yrd Mat Min Sub Scr Fac Fac Hostile Shots Fired 595 | . 38 46 95 . 184 232 Missed 236 | . 7 12 38 . 70 109 Hits 359 | . 31 34 57 . 114 123 Projectile 359 | . 31 34 57 . 114 123 AOE 3 | . . . 3 . . . Critical Strikes 4 | . . 1 . . 1 2 Damage Taken 6235 | . 322 324 896 . 1725 2968 Core 1663 | . 90 38 111 . 417 1007 Absorbed by Shields . | . . . . . . . Redirected to Shielding 150 | . . . . . 86 64 Core Remaining (%) 51 | 100 . . . 4 50 . Volleys Fired 206 | 9 47 12 67 . 68 3 Largest 2 | 2 2 2 2 . 2 1 Hottest 150 | 60 66 66 73 . 150 30 Shots Fired 370 | 18 94 23 108 . 123 4 Gun 159 | 18 . . 25 . 116 . Cannon 171 | . 94 23 54 . . . Launcher 39 | . . . 29 . 7 3 Special 1 | . . . . . . 1 Kinetic 205 | 9 94 23 79 . . . Thermal 117 | . . . . . 116 1 Explosive 10 | . . . . . 7 3 Electromagnetic 38 | 9 . . 29 . . . Robot Hit Streak 27 | 3 5 5 12 . 26 27 Robot Miss Streak 10 | 1 10 3 3 . 4 . Penetration Max . | . . . . . . . Secondary Targets 2 | . . . . . 2 . Max Gunslinging Chain 1 | . . . . . 1 . Shots Hit Robots 219 | 11 26 13 49 . 95 25 Core Hits 116 | 4 11 3 30 . 53 15 Critical Kills . | . . . . . . . Critical Parts Destroyed . | . . . . . . . Critical Strikes 18 | 1 1 . 1 . 13 2 Burn 13 | . . . . . 13 . Destroy 1 | . . . 1 . . . Blast 1 | . 1 . . . . . Corrupt 1 | 1 . . . . . . Sever 2 | . . . . . . 2 Melee Attacks 47 | . . . . . 8 39 Impact 10 | . . . . . 8 2 Slashing 37 | . . . . . . 37 Piercing . | . . . . . . . Sneak Attacks 7 | . . . . . 1 6 Combat Hostiles . | . . . . . . . Follow-up Attacks 1 | . . . . . . 1 Damage Inflicted 6129 | 145 597 304 1335 . 2142 1606 Guns 2009 | 105 . . 311 . 1593 . Cannons 1296 | . 584 304 408 . . . Explosions 1513 | 40 . . 616 . 383 474 Melee 1277 | . . . . . 166 1111 Ramming 34 | . 13 . . . . 21 Kinetic 1657 | 50 584 304 719 . . . Thermal 1633 | 40 . . . . 1593 . Explosive 857 | . . . . . 383 474 Electromagnetic 671 | 55 . . 616 . . . Impact 166 | . . . . . 166 . Slashing 1111 | . . . . . . 1111 Piercing . | . . . . . . . Highest Corruption 13 | . . . . . 13 9 Average Corruption 4 | . . . . . 5 4 Corruption Purged . | . . . . . . . Corruption Blocked . | . . . . . . . Effects 14 | . . . . . 3 11 Message Errors 6 | . . . . . 2 4 Matter Fused 3 | . . . . . . 3 Energy Discharges 1 | . . . . . . 1 Data Loss (minor) 1 | . . . . . 1 . Data Loss (major) 2 | . . . . . . 2 Misfires 1 | . . . . . . 1 Overload Shots 4 | . . . . . 4 . Effects 2 | . . . . . 2 . Energy Bleed 1 | . . . . . 1 . Heat Surge 1 | . . . . . 1 . Overflow Damage 337 | . . 15 11 . 116 195 Projectiles 15 | . . 15 . . . . Explosions 73 | . . . 11 . 10 52 Melee 249 | . . . . . 106 143 Knockbacks 10 | . 7 1 1 . 1 . Impact 2 | . 1 . . . 1 . Kinetic 7 | . 5 1 1 . . . Secondary 1 | . 1 . . . . . Self-Inflicted Damage 429 | . . . 151 . 24 254 Shots 14 | . . . 9 . 1 4 Rammed 5 | . 1 . . . . 4 Targets Rammed 5 | . 1 . . . . 4 Kicked . | . . . . . . . Crushed . | . . . . . . . Highest Temperature 253 | 40 102 70 10 . 253 11 Average Temperature 34 | 17 21 27 3 . 66 6 Received Heat Transfer 1569 | . 123 102 183 . 633 528 Siege Activations . | . . . . . . . Martial Activations . | . . . . . . . Shielding Activations . | . . . . . . . Robots Disrupted . | . . . . . . . Combat Hostiles . | . . . . . . . Robots Corrupted 2 | . . . . . 2 . Combat Hostiles . | . . . . . . . Parts Fried 1 | . . . . . 1 . Impact Corruptions 5 | . . . . . 5 . Robots Melted 2 | . . . . . 2 . Combat Hostiles 2 | . . . . . 2 . Parts Melted 16 | . . . . . 16 . Heat Transferred 4453 | 50 . . . . 4403 . Parts Sabotaged . | . . . . . . . Parts Stolen . | . . . . . . . Parts Stripped . | . . . . . . . Power Chain Reactions 4 | 1 . . 3 . . . Alert | -11 -10 -10 -10 -8 -6 -5 ------- Run | Yrd Mat Min Sub Scr Fac Fac Maximum Alert Level 1 | . . 1 . . . 1 Low Security (%) 97 | 100 100 99 . . 100 89 Level 1 2 | . . . . . . 10 Level 2 . | . . . . . . . Level 3 . | . . . . . . . Level 4 . | . . . . . . . Level 5 . | . . . . . . . High Security . | . . . . . . . Max Security . | . . . . . . . Peak Influence 373 | 5 71 201 . . 138 373 Initial 14 | . . 1 . . . 14 Average 64 | 1 14 91 . . 58 120 Influence Increases 3013 | 10 230 372 910 . 549 942 Destroy 0b10 Robot/C 1140 | . 160 280 200 . 380 120 Destroy 0b10 Robot/NC 95 | 10 15 5 . . 35 30 Destroy Leader 204 | . 34 50 20 . 70 30 Allied During Kill 36 | . . 36 . . . . Trap Triggered on 0b10 10 | . . . . . . 10 Successful Hack 46 | . 15 . . . 15 16 Disable Machine 75 | . . . . . . 75 Destroy Structure 177 | . 6 1 . . 34 136 Partial Spotted 15 | . . . . . . 15 Lose Combat Pursuer 1215 | . . . 690 . 15 510 Influence Decreases 2650 | 10 225 345 222 720 520 608 Entered New Map 756 | . . 4 17 720 . 15 Time Decay 1372 | 10 225 271 185 . 370 311 Lost Part 462 | . . 10 20 . 150 282 Lost Ally 60 | . . 60 . . . . Squads Dispatched 16 | . 2 . . . 5 9 Investigation 10 | . 2 . . . 3 5 Extermination 3 | . . . . . 1 2 Reinforcement 3 | . . . . . 1 2 Assault . | . . . . . . . Garrison . | . . . . . . . Intercept . | . . . . . . . Searches Triggered . | . . . . . . . Construction Impeded 2 | . . . . . 1 1 Haulers Reinforced . | . . . . . . . Active Scanning Responses . | . . . . . . . Cargo Convoy Interrupts . | . . . . . . . Stealth | -11 -10 -10 -10 -8 -6 -5 --------- Run | Yrd Mat Min Sub Scr Fac Fac Distress Signals 3 | . 2 . . . . 1 Communications Jammed . | . . . . . . . Distress Signals . | . . . . . . . Times Spotted 136 | . 15 13 32 . 23 53 Peak Tracking Total 14 | . 3 5 6 . 4 14 Tactical Retreats 15 | . . . 3 . 1 11 Traps | -11 -10 -10 -10 -8 -6 -5 ------- Run | Yrd Mat Min Sub Scr Fac Fac Traps Triggered 10 | . 1 . 1 . 1 7 Indirectly . | . . . . . . . Trap Hack Attempts . | . . . . . . . Triggered . | . . . . . . . Disarmed . | . . . . . . . Reprogrammed . | . . . . . . . Reused 1 | . . . . . . 1 Traps Extracted . | . . . . . . . Installed 3 | . . . . . . 3 Triggered 1 | . . . . . . 1 Most Traps Carried 3 | . . . . 3 3 3 Machines | -11 -10 -10 -10 -8 -6 -5 ---------- Run | Yrd Mat Min Sub Scr Fac Fac Machines Disabled 10 | . . . 5 . . 5 Max in Single Turn 3 | . . . 3 . . 3 Machines Repaired . | . . . . . . . Machines Dismantled . | . . . . . . . Machines Sabotaged . | . . . . . . . Overloaded Fab Kills . | . . . . . . . Hacking | -11 -10 -10 -10 -8 -6 -5 --------- Run | Yrd Mat Min Sub Scr Fac Fac Machines Accessed 22 | . 4 1 1 2 5 9 Terminals 10 | . 4 1 . . 2 3 Fabricators 1 | . . . . . . 1 Repair Stations . | . . . . . . . Recycling Units 7 | . . . . . 3 4 Scanalyzers . | . . . . . . . Garrison Access 1 | . . . . . . 1 Total Hacks 56 | . 13 2 1 7 13 20 Successful 24 | . 6 . 1 7 6 4 Failed 32 | . 7 2 . . 7 16 Catastrophic 11 | . 1 1 . . 2 7 Database Lockouts . | . . . . . . . Manual 41 | . 13 3 . . 13 12 Terminals 29 | . 13 2 . . 6 8 Fabricators 2 | . . . . . . 2 Repair Stations . | . . . . . . . Recycling Units 15 | . . . . . 7 8 Scanalyzers . | . . . . . . . Garrison Access 2 | . . . . . . 2 Terminal Hacks 15 | . 2 . 1 7 3 2 Robot Analysis 6 | . . . . 6 . . Level Access Points 1 | . . . . . 1 . Branch Access Points 2 | . . . . . 1 1 Recycling Unit Index 1 | . . . . . . 1 Registered Components 1 | . 1 . . . . . Zone Layout 2 | . 1 . . . 1 . Proto ID Catalog 2 | . . . 1 1 . . Fabricator Hacks . | . . . . . . . Repair Station Hacks . | . . . . . . . Recycling Unit Hacks . | . . . . . . . Scanalyzer . | . . . . . . . Garrison Access Hacks . | . . . . . . . Unauthorized Hacks 9 | . 4 . . . 3 2 Terminals 4 | . 4 . . . . . Botnet 2 | . 2 . . . . . Skim 2 | . 2 . . . . . Fabricators . | . . . . . . . Repair Stations . | . . . . . . . Recycling Units 5 | . . . . . 3 2 Fedlink 5 | . . . . . 3 2 Scanalyzers . | . . . . . . . Garrison Access . | . . . . . . . Data Cores Recovered . | . . . . . . . Used . | . . . . . . . Hacking Detections 15 | . 4 1 . . 3 7 Full Trace Events 4 | . 1 . . . . 3 Feedback Events . | . . . . . . . Feedback Blocked . | . . . . . . . Robot Schematics Acquired . | . . . . . . . Robots Built . | . . . . . . . Authchips . | . . . . . . . Time . | . . . . . . . Total Robot Build Rating . | . . . . . . . Part Schematics Acquired . | . . . . . . . Parts Built . | . . . . . . . Authchips . | . . . . . . . Time . | . . . . . . . Total Part Build Rating . | . . . . . . . Parts Repaired . | . . . . . . . Time . | . . . . . . . Parts Recycled . | . . . . . . . Recycled Matter . | . . . . . . . Retrieved Matter . | . . . . . . . Retrieved Components . | . . . . . . . Parts Scanalyzed . | . . . . . . . Part Schematics Acquired . | . . . . . . . Parts Damaged . | . . . . . . . Bothacking | -11 -10 -10 -10 -8 -6 -5 ------------ Run | Yrd Mat Min Sub Scr Fac Fac Used RIF Installer . | . . . . . . . Robots Hacked . | . . . . . . . Non-combat . | . . . . . . . Combat . | . . . . . . . Robot Hacks Applied . | . . . . . . . Relay Couplers Released . | . . . . . . . Fabnet Peak Effective % . | . . . . . . . Robots Rewired . | . . . . . . . Allies Hacked . | . . . . . . . Hacks Repelled . | . . . . . . . Allies | -11 -10 -10 -10 -8 -6 -5 -------- Run | Yrd Mat Min Sub Scr Fac Fac Total Allies 3 | . . 3 . . . . Largest Group 3 | . . 3 . . . . Highest-Rated Group 40 | . . 40 . . . . Highest-Rated Ally 16 | . . 16 . . . . Total Orders . | . . . . . . . Ally Attacks 42 | . . 42 . . . . Total Damage 394 | . . 394 . . . . Kills 12 | . . 12 . . . . Allies Corrupted . | . . . . . . . Allies Melted . | . . . . . . . Intel | -11 -10 -10 -10 -8 -6 -5 ------- Run | Yrd Mat Min Sub Scr Fac Fac Active Infowar (turns) 4661 | 25 1205 785 1766 . 198 682 Sensors 796 | . . . . . 114 682 Terrain 148 | . . . . . 84 64 Seismic 3781 | 25 1205 785 1766 . . . Robot Analysis Total 6 | . . . . 6 . . Derelict Logs Recovered 4 | . . 1 1 2 . . Drone Launches . | . . . . . . . Drone Recoveries . | . . . . . . . Exploration | -11 -10 -10 -10 -8 -6 -5 ------------- Run | Yrd Mat Min Sub Scr Fac Fac Turns Passed 10254 | 116 1205 785 4224 1999 996 929 Spaces Moved 4745 | 50 424 303 1370 1100 393 1105 Core 124 | 17 . . . . . 107 Treads 2155 | 33 424 303 717 436 242 . Legs . | . . . . . . . Wheels 1370 | . . . 653 664 53 . Hover 1010 | . . . . . 98 912 Flight 86 | . . . . . . 86 Fastest Speed 45 | 50 160 240 140 110 66 45 Average Speed 186 | 122 209 240 290 175 162 58 Slowest Speed 1160 | 160 240 240 1160 360 290 250 Overloaded Moves . | . . . . . . . Propulsion Burnouts . | . . . . . . . Robots Hopped 2 | . . . . . . 2 Potential Cave-ins 4 | . . . 2 . 2 . Cave-ins Triggered 1 | . . . . . . 1 Exploration Rate (%) 46 | 4 50 65 75 85 12 34 Regions Visited 6 Branch Regions 3 Pre-discovered Areas 2 | . . 1 . . 1 . Known Exits Taken 1 | . . . . . 1 . Unknown Exits Taken 5 | 1 1 1 1 1 . . Scrap Searched 9 | . . 1 5 3 . . Spaces Dug 36 | . 3 . 13 . 9 11 Terrain Destroyed 151 | 2 14 1 22 . 33 79 Melee 16 | . . . . . 5 11 Projectile 33 | . 14 1 14 . 4 . AOE 102 | 2 . . 8 . 24 68 Terrain Rammed . | . . . . . . . Walls Destroyed . | . . . . . . . Machines Disabled . | . . . . . . . Actions | -11 -10 -10 -10 -8 -6 -5 --------- Run | Yrd Mat Min Sub Scr Fac Fac Total 5683 | 87 649 338 1507 1179 613 1310 Wait 382 | 13 154 22 24 8 75 86 Move 4736 | 49 423 302 1369 1099 392 1102 Hop 1 | . . . . . . 1 Pick Up 110 | 8 17 . 24 28 22 11 Fast Attach 39 | 2 . . 1 5 4 27 Attach 54 | 5 2 1 7 5 22 12 Detach 10 | . . . . 2 3 5 Swap 21 | 1 1 1 7 2 6 3 Drop 70 | . 4 . 8 30 13 15 Fire 206 | 9 47 12 67 . 68 3 Melee 46 | . . . . . 8 38 Ram 4 | . . . . . . 4 Kick . | . . . . . . . Crush 1 | . 1 . . . . . Escape Stasis . | . . . . . . . Rewire . | . . . . . . . Trap 3 | . . . . . . 3 Miscellaneous . | . . . . . . . Route ------- -11/Scrapyard -10/Materials (discovered 2 exits: [*Mat] / *Min) -10/Mines (discovered 2 exits: [*Mat] / *Sub) -10/Subcaves (discovered 4 exits: [*Mat x2] / [*Rec] / *Scr) -8/Scraptown (discovered 2 exits: *Fac x2) -6/Factory (discovered 6 exits: *Fac x4 / Low x2) -5/Factory (discovered 2 exits: Upp x2) History --------- Turn | Location | Event 2 | -11/Scrapyard | Met Revision 17 12 | -11/Scrapyard | Discovered new exit (range 16) 117 | -11/Scrapyard | Entered Materials 287 | -10/Materials | Discovered new exit (range 7) 310 | -10/Materials | Build established: Mutant 665 | -10/Materials | Discovered new exit (range 15) 1322 | -10/Materials | Entered Mines 1399 | -10/Mines | Assisted by bots powering up and referring to "LRC-V3" 1578 | -10/Mines | Learned Materials terminal intel 1715 | -10/Mines | Discovered new exit (range 7) 1774 | -10/Mines | Learned location of Storage (-8) 1871 | -10/Mines | Core integrity fell below 50% 2092 | -10/Mines | Discovered new exit (range 9) 2107 | -10/Mines | Entered Subcaves 2108 | -10/Subcaves | Approached by a straggling Scientist 2484 | -10/Subcaves | Shifting Twisted Machinery released Flamer 2847 | -10/Subcaves | Shifting Twisted Machinery released Sub. Laser 2866 | -10/Subcaves | Shifting Twisted Machinery released Barrage Gun 3716 | -10/Subcaves | Discovered new exit (range 5) 3868 | -10/Subcaves | Disturbed a concealed Subdweller 3871 | -10/Subcaves | Disturbed a concealed Subdweller 3906 | -10/Subcaves | Lost 5 parts (1p2n1u1w) 3939 | -10/Subcaves | Discovered new exit (range 15) 4330 | -10/Subcaves | Build established: Hauler-Mutant 4367 | -10/Subcaves | Core integrity fell below 20% 4411 | -10/Subcaves | Discovered new exit (range 16) 4612 | -10/Subcaves | Learned Materials stockpile data 4853 | -10/Subcaves | Visited 4L-MR0's lab 4887 | -10/Subcaves | Found Rainbow Chip 6057 | -10/Subcaves | Ambushed by Subdweller buried in earth 6068 | -10/Subcaves | Ambushed by Subdweller buried in earth 6141 | -10/Subcaves | Scientist uncovered a shortcut to Scraptown 6331 | -10/Subcaves | Entered Scraptown 6487 | -8/Scraptown | Scanned Subdweller tech in exchange for log data 6491 | -8/Scraptown | Learned location of 1 exit from Research 6519 | -8/Scraptown | Discovered new exit (range 13) 6633 | -8/Scraptown | Visited Shadow of the Wyrm 6656 | -8/Scraptown | Visited UFD Registry 6656 | -8/Scraptown | Registered with UFD as "Monotube" 6802 | -8/Scraptown | Build established: Mutant 7406 | -8/Scraptown | Visited Junk Repository 7457 | -8/Scraptown | Visited Spacefarers 7475 | -8/Scraptown | Visited CR-KLE's Repair Center 7498 | -8/Scraptown | Visited Fellowship of the Rings 7507 | -8/Scraptown | Visited Red Mages 7627 | -8/Scraptown | Visited Derelict Rescue Squad 7636 | -8/Scraptown | Found DRS Beacon 7664 | -8/Scraptown | Visited Analyses Database 7697 | -8/Scraptown | Visited Curators Association 7721 | -8/Scraptown | Visited Science Guys 7900 | -8/Scraptown | Visited Supply Room 7960 | -8/Scraptown | Visited Scrapoid Research Area 7972 | -8/Scraptown | Visited Modified Component R&D 8029 | -8/Scraptown | Visited Junk Repository 8099 | -8/Scraptown | Visited Botcube Research 8106 | -8/Scraptown | Found Botcube 8268 | -8/Scraptown | Met Optimus 8268 | -8/Scraptown | Accepted into 0bPrime 8328 | -8/Scraptown | Discovered new exit (range 3) 8330 | -8/Scraptown | Entered Factory 8330 | -6/Factory | Evolved 8 slots: Propulsion x4, Utility x4 8459 | -6/Factory | Loaded intel: 8 recycling unit locations 8587 | -6/Factory | Learned location of Protoforge (-2) 8767 | -6/Factory | Lost 4 parts (1p1n1u1w) 8816 | -6/Factory | Lost 3 parts (1p1n1w) 8872 | -6/Factory | Identified exit to Lower Caves 8872 | -6/Factory | Identified exit to Factory 9276 | -6/Factory | System corruption reached 10% 9326 | -6/Factory | Entered another Factory area 9326 | -5/Factory | Evolved 2 slots: Power x1, Utility x1 9613 | -5/Factory | Lost 5 parts (2p1n2u) 9912 | -5/Factory | Crushed by falling debris 9943 | -5/Factory | Lost 8 parts (1p4n2u1w) 10092 | -5/Factory | Core integrity fell below 50% 10119 | -5/Factory | Lost 5 parts (1p2n1u1w) 10155 | -5/Factory | Loaded intel: 8 recycling unit locations 10168 | -5/Factory | Identified exit to Upper Caves 10207 | -5/Factory | Core integrity fell below 20% 10227 | -5/Factory | Lost 7 parts (1p5n1w) 10255 | -5/Factory | Destroyed by S-27 Virus with Autogun Last Messages --------------- 10191_ Door malfunctions. 10191_ A bubble of electromagnetic force engulfs the area. 10191_ Neutrino Core destroyed. 10191_ Imp. Gravmag System destroyed. 10191_ Tesla Bomb Trap short circuited. 10191_ A bubble of electromagnetic force engulfs the area. 10191_ Imp. Gravmag System destroyed. 10192_ Dropped Med. Storage Unit. 10196_ Field Propulsion Drive destroyed. 10200_ System corrupted: Energy discharge (-24). 10201_ Acquired Transmission Jammer. 10208_ P-70 Sage resets S-27 Virus, system corruption cleaned. 10209_ Slammed into K-01 Serf. 10212_ P-70 Sage resets S-27 Virus, system corruption cleaned. 10214_ Slammed into K-01 Serf. 10232_ System corrupted: Matter fused (-8). 10238_ ALERT: Potential suspicious activity detected, Programmers report to Factory Zone 2F. 10251_ Adv. Weight Redist. System destroyed. 10254_ P-70 Sage resets K-01 Serf, system corruption cleaned. Map ----- +----------------------------------------------------+ | ????????????????????# #??# | | ????????????????????# #### | | ????????????????????# " + | | ????????????????????# ## # | | ????????????????????# ## # | | ????????????????????### #### # | | ????????????????????? #??# # | | ???????????????????? #??# # | | ?????????H????????? ???# ######### | | ?????????????????? ###???# ##???#### | | ??????????? ??? ??????# #????# | | ????????? ??####???????# #????# | | ????????# ?????????????# #????# | | ????????# ?????????????# ###### | | ????????+ ?????????????# + | | ????????# ?????????????# # " | | ????????# ?????????????# # T | | ????????# #????????????# + " | | ????????# #????????????# # | | ????????# #????????????# #### | | ????????# p #????????????# ??? | | ????????# #????????????#########?? | | ????????# #??????????????????????? | | ????????# #??????????????????????? | | ????????# #??????????????????????? | | ????????# @#??????????????????????? | | ????????# p #??????????????????????? | | ????????# #??????????????????????? | | ????????# #??????????????????????? | | ????????# u#??????????????????????? | | ????????# #??????????????????????? | | ????????# #??????????????????????? | | ????????# #??????????????????????? | | ????????# s#??????????????????????? | | ????????# #??????????????????????? | | ????????# #??????????????????????? | | ????????/k s#??????????????????????? | | ??????? # #??????????????????????? | | ?????? # #??????????????????????? | | ?????? ?# ss #??????????????????????? | | ????? ?# ##########+#######?????? | | ???? ??# ??????? | | ????????# ?????? | | ????????# ?????? | | ????????# ????? | | ????????# ?????? | | ????????######## ###+####????????? | | ?????????? # #???????????????? | | ??????????! !# #???????????????? | | ??????????? ?# #???????????????? | +----------------------------------------------------+ Best States ------------- Heat Dissipation 59 Energy Generation 31 Energy Capacity 315 Matter Stores 300 Matter Capacity 300 Sight Range 16 Robot Scan Range 15 Terrain Scan Range 20 Terrain Scan Density 10 Additional Mass Support 9 Core Shielding 20 Propulsion Shielding 66 Phase Shifting 5 Evasion (%) 61 Targeting Accuracy 24 Melee Accuracy 16 Target Analysis 6 Recoil Reduction 2 Item Schematics ----------------- None Robot Schematics ------------------ None Fabricated ------------ Nothing Repaired ---------- Nothing Alien Tech Used ----------------- None Achievements -------------- None Challenges ------------ None Game ------ Seed DeuteriumSubatomicShifter Manual? 0 Play Time 00:42:21 Cumulative 283.4 hours Start 2025.09.12 @ 14:27:13 End 2025.09.12 @ 15:13:31 Sessions 1 Manual Loads 0 Difficulty Rogue Special Mode None Game No. 408 Rogue 408 Adventurer 0 Explorer 0 Win Type - Total 8 Types 5/0/1/2/0/0/0/0/0/0 Lore% 83 Gallery% 80 Achievement% 62 Wizard Run 0 Options --------- Layout 0 ASCII 0 Keyboard 0 Movement Mouse Keybinds 0 Fullscreen 1 Font 24/Smallcaps Map View 76x50 Zoom Use 0% Tactical HUD 1 Map Filters NONE Filters NONE Steam 1 RUN: 1e5dc10e-eb34-4a59-af29-b4bf2c7641b9